bitfinex-derivatives/quotes_BTCF0:USTF0_20251103
["timestamp","ask_amount","ask_price","bid_price","bid_amount"]
[1762174599314,0.68199207,107800.0,107790.0,0.09135279]
[1762174599815,0.68199207,107800.0,107790.0,0.18414119]
[1762174600406,0.51602469,107800.0,107790.0,0.18414119]
[1762174600611,0.49336163,107800.0,107790.0,0.18414119]
[1762174601507,0.58614133,107800.0,107790.0,0.18414119]
[1762174602406,0.58138406,107800.0,107790.0,0.18414119]
[1762174602915,0.48860436,107800.0,107790.0,0.18414119]
[1762174603308,0.58138406,107800.0,107790.0,0.18414119]
[1762174603817,0.48860436,107800.0,107790.0,0.18414119]
[1762174604113,0.58138406,107800.0,107790.0,0.18414119]
[1762174604615,0.48860436,107800.0,107790.0,0.18414119]
[1762174604809,0.3608,107810.0,107800.0,0.04392]
[1762174605022,0.47451696,107810.0,107800.0,0.4712697]
[1762174605319,0.37019191,107820.0,107810.0,0.1503011]
[1762174605504,0.48390887,107820.0,107810.0,0.1503011]
[1762174605916,0.48397904,107820.0,107810.0,0.1503011]
[1762174607518,0.58574154,107820.0,107810.0,0.1503011]
[1762174607909,0.50197904,107820.0,107810.0,0.1513011]
[1762174608416,0.615696,107820.0,107810.0,0.1513011]
[1762174608605,0.50197904,107820.0,107810.0,0.1513011]
[1762174609006,0.59474154,107820.0,107810.0,0.1513011]
[1762174609718,0.7084585,107820.0,107810.0,0.1513011]
[1762174610305,0.615696,107820.0,107810.0,0.4728211]
[1762174610511,0.7084586,107820.0,107810.0,0.4728211]
[1762174611120,0.615696,107820.0,107810.0,0.4728211]
[1762174611814,0.50197904,107820.0,107810.0,0.4728211]
[1762174612011,0.14117904,107820.0,107810.0,0.4728211]
[1762174614022,0.12417904,107820.0,107810.0,0.4738211]
[1762174614224,0.12617904,107820.0,107810.0,0.4738211]
[1762174614624,0.12417904,107820.0,107810.0,0.4738211]
[1762174614825,0.3356586,107820.0,107810.0,0.4728211]
[1762174616425,0.3356586,107820.0,107810.0,0.4726211]
[1762174617723,0.6964586,107820.0,107810.0,0.4726211]
[1762174617925,0.6964586,107820.0,107810.0,0.4725811]
[1762174620116,0.6964586,107820.0,107810.0,0.37981]
[1762174620923,0.6964586,107820.0,107810.0,0.4725812]
[1762174621226,0.6964586,107820.0,107810.0,0.37981]
[1762174621918,0.6964586,107820.0,107810.0,0.4725812]
[1762174622122,0.6964586,107820.0,107810.0,0.37981]
[1762174622921,0.6964586,107820.0,107810.0,0.4725812]
[1762174623126,0.6944586,107820.0,107810.0,0.4715812]
[1762174623432,0.7044586,107820.0,107810.0,0.37981]
[1762174623727,0.7084586,107820.0,107810.0,0.37981]
[1762174624324,0.7084586,107820.0,107810.0,0.03714]
[1762174624522,0.7084586,107820.0,107810.0,0.01461]
[1762174624931,0.7084586,107820.0,107810.0,0.05781]
[1762174626628,0.7074586,107820.0,107810.0,0.05781]
[1762174627022,0.7074586,107820.0,107810.0,0.03613]
[1762174627222,0.7074586,107820.0,107810.0,0.03606]
[1762174627529,0.7074586,107820.0,107810.0,0.01454]
[1762174627832,0.7074586,107820.0,107810.0,0.001]
[1762174628130,0.9393386,107820.0,107810.0,0.001]
[1762174628317,0.96194634,107820.0,107810.0,0.001]
[1762174628721,0.73006634,107820.0,107810.0,0.001]
[1762174628929,0.96194634,107820.0,107810.0,0.001]
[1762174629329,0.73006634,107820.0,107810.0,0.001]
[1762174631928,0.7074586,107820.0,107810.0,0.05774]
[1762174632528,0.7074586,107820.0,107810.0,0.1505112]
[1762174632730,0.614696,107820.0,107810.0,0.1505112]
[1762174633832,0.7074586,107820.0,107810.0,0.1505112]
[1762174635429,0.614696,107820.0,107810.0,0.1505112]
[1762174636433,0.14017904,107820.0,107810.0,0.4717512]
[1762174637431,0.14017904,107820.0,107810.0,0.89920407]
[1762174640340,0.23294164,107820.0,107810.0,0.89920407]
[1762174640540,0.14017904,107820.0,107810.0,0.89920407]
[1762174643839,0.13017904,107820.0,107810.0,0.90320407]
[1762174644043,0.13117904,107820.0,107810.0,0.90320407]
[1762174644644,0.13017904,107820.0,107810.0,0.89820407]
[1762174644844,0.13117904,107820.0,107810.0,0.90020407]
[1762174645142,0.12717904,107820.0,107810.0,0.90020407]
[1762174645646,0.12817904,107820.0,107810.0,0.90020407]
[1762174646649,0.11978713,107820.0,107810.0,1.01392103]
[1762174647636,0.00607017,107820.0,107810.0,0.90020407]
[1762174647836,0.11978713,107820.0,107810.0,0.90020407]
[1762174650236,0.11978713,107820.0,107810.0,0.8335512]
[1762174652739,0.11978713,107820.0,107810.0,0.4727512]
[1762174652938,0.11978713,107820.0,107810.0,0.8335512]
[1762174653149,0.00944158,107830.0,107820.0,0.0927627]
[1762174653349,0.11371696,107830.0,107820.0,0.1506227]
[1762174654441,0.5861246,107840.0,107830.0,0.1506141]
[1762174654650,0.5861246,107840.0,107830.0,0.4714941]
[1762174655958,0.5921246,107840.0,107830.0,0.4724941]
[1762174656344,0.5921246,107840.0,107830.0,0.37974]
[1762174656544,0.5921246,107840.0,107830.0,0.4724941]
[1762174656745,0.5941246,107840.0,107830.0,0.4734941]
[1762174656948,0.72689816,107840.0,107830.0,0.0472]
[1762174657244,0.72689816,107840.0,107830.0,0.36804]
[1762174657446,0.72689816,107840.0,107830.0,0.3807]
[1762174659353,0.72689816,107840.0,107830.0,0.38074]
[1762174660555,0.7043916,107840.0,107830.0,0.38074]
[1762174660949,0.7043916,107840.0,107830.0,0.0472]
[1762174661154,0.72692306,107840.0,107830.0,0.0472]
[1762174663255,0.72692306,107840.0,107830.0,0.05986]
[1762174666260,0.72692306,107840.0,107830.0,0.0472]
[1762174666956,0.72692306,107840.0,107830.0,0.002]
[1762174670064,0.72692306,107840.0,107830.0,0.02471]
[1762174670463,0.72692306,107840.0,107830.0,0.0472]
[1762174673862,0.72692306,107840.0,107830.0,0.152614]
[1762174674453,0.72692306,107840.0,107830.0,0.05986]
[1762174682372,0.72692306,107840.0,107830.0,0.02471]
[1762174682670,0.72692306,107840.0,107830.0,0.06138]
[1762174683562,0.72692306,107840.0,107830.0,0.002]
[1762174684168,0.1243424,107820.0,107810.0,0.05899]
[1762174684369,0.96947406,107820.0,107810.0,0.04545]
[1762174684872,0.96947406,107820.0,107810.0,0.0592]
[1762174685370,0.97047406,107820.0,107810.0,0.0652]
[1762174685671,0.97047406,107820.0,107810.0,0.0662]
[1762174685873,0.97147406,107820.0,107810.0,0.0662]
[1762174686286,0.97047406,107820.0,107810.0,0.0602]
[1762174686477,0.97647406,107820.0,107810.0,0.0612]
[1762174686677,0.97547406,107820.0,107810.0,0.04645]
[1762174686879,0.98147406,107820.0,107810.0,0.04745]
[1762174688276,0.98147406,107820.0,107810.0,0.0612]
[1762174692083,0.8579424,107820.0,107810.0,0.153971]
[1762174692386,0.8661785,107820.0,107810.0,0.153971]
[1762174693091,0.3728,107820.0,107810.0,0.153971]
[1762174693391,0.012,107820.0,107810.0,0.153971]
[1762174693591,0.02779,107820.0,107810.0,0.153971]
[1762174693789,0.5981409,107820.0,107810.0,0.153971]
[1762174694792,0.598141,107820.0,107810.0,0.153971]
[1762174698392,0.4737985,107820.0,107810.0,0.153971]
[1762174699093,0.1287885,107820.0,107810.0,0.153971]
[1762174700403,0.1287885,107820.0,107810.0,0.22062387]
[1762174700785,0.012,107820.0,107810.0,0.22062387]
[1762174701089,0.502647,107840.0,107830.0,0.1519538]
[1762174701289,0.5953923,107840.0,107830.0,0.4722738]
[1762174703396,0.5993923,107840.0,107830.0,0.4732738]
[1762174703997,0.5043938,107840.0,107830.0,0.4742738]
[1762174704198,0.6053923,107840.0,107830.0,0.4742738]
[1762174705295,0.6053923,107840.0,107830.0,0.38152]
[1762174705499,0.7063908,107840.0,107830.0,0.38152]
[1762174705796,0.7063908,107840.0,107830.0,0.0612]
[1762174705991,0.7063908,107840.0,107830.0,0.38144]
[1762174706396,0.7063908,107840.0,107830.0,0.4741936]
[1762174707100,0.7063908,107840.0,107830.0,0.38144]
[1762174707400,0.7063908,107840.0,107830.0,0.4741936]
[1762174708495,0.7063908,107840.0,107830.0,0.3814]
[1762174709093,0.7063908,107840.0,107830.0,0.4741536]
[1762174709703,0.6053923,107840.0,107830.0,0.4741536]
[1762174710906,0.512647,107840.0,107830.0,0.4741536]
[1762174711597,0.605392,107840.0,107830.0,0.4741536]
[1762174715506,0.512647,107840.0,107830.0,0.4741536]
[1762174716307,0.52527762,107840.0,107830.0,0.4741536]
[1762174718106,0.61802262,107840.0,107830.0,0.4741536]
[1762174719808,0.61802262,107840.0,107830.0,0.1539536]
[1762174720008,0.61802262,107840.0,107830.0,0.4739936]
[1762174720211,0.61802262,107840.0,107830.0,0.38124]
[1762174720401,0.61802262,107840.0,107830.0,0.4739937]
[1762174720809,0.61802262,107840.0,107830.0,0.38124]
[1762174721001,0.61802262,107840.0,107830.0,0.4739937]
[1762174723103,0.52527762,107840.0,107830.0,0.4739937]
[1762174724503,0.61802282,107840.0,107830.0,0.4739937]
[1762174728910,0.61802282,107840.0,107830.0,0.1539537]
[1762174729107,0.61802282,107840.0,107830.0,0.4739937]
[1762174730515,0.52527762,107840.0,107830.0,0.4739937]
[1762174730709,0.12362912,107840.0,107830.0,0.65428392]
[1762174730913,0.37019578,107860.0,107850.0,0.1514266]
[1762174731212,0.6081329,107860.0,107850.0,0.53823023]
[1762174732004,0.5154049,107860.0,107850.0,0.53823023]
[1762174732212,0.6151328,107860.0,107850.0,0.53923023]
[1762174732416,0.6251328,107860.0,107850.0,0.4734666]
[1762174732617,0.6251328,107860.0,107850.0,0.38073]
[1762174733114,0.6251328,107860.0,107850.0,0.4734665]
[1762174738517,0.6251328,107860.0,107850.0,0.4734666]
[1762174738723,0.73876192,107860.0,107850.0,0.36799]
[1762174739318,0.73876192,107860.0,107850.0,0.38074]
[1762174739814,0.73876192,107860.0,107850.0,0.06074]
[1762174740018,0.73876192,107860.0,107850.0,0.38074]
[1762174740323,0.76134213,107860.0,107850.0,0.38074]
[1762174741419,0.76134213,107860.0,107850.0,0.4734766]
[1762174741625,0.76134213,107860.0,107850.0,0.38074]
[1762174743327,0.53408389,107860.0,107850.0,0.38074]
[1762174743623,0.76134213,107860.0,107850.0,0.38074]
[1762174746129,0.76134213,107860.0,107850.0,0.4734766]
[1762174746728,0.64771301,107860.0,107850.0,0.4734766]
[1762174747130,0.64771301,107860.0,107850.0,0.38074]
[1762174747524,0.64771301,107860.0,107850.0,0.06074]
[1762174747721,0.76134213,107860.0,107850.0,0.38074]
[1762174750243,0.76134213,107860.0,107850.0,0.4734765]
[1762174752542,0.76134213,107860.0,107850.0,0.38074]
[1762174753342,0.76134213,107860.0,107850.0,0.04799]
[1762174753645,0.76134213,107860.0,107850.0,0.002]
[1762174753845,0.78622544,107860.0,107850.0,0.002]
[1762174754044,0.76134213,107860.0,107850.0,0.002]
[1762174754540,0.78622544,107860.0,107850.0,0.002]
[1762174755245,0.76134213,107860.0,107850.0,0.002]
[1762174755445,0.78622544,107860.0,107850.0,0.002]
[1762174757239,0.1203251,107840.0,107830.0,0.4724327]
[1762174757444,0.59475422,107840.0,107830.0,0.4724327]
[1762174758347,0.59575422,107840.0,107830.0,0.4724327]
[1762174758742,0.59775422,107840.0,107830.0,0.4724327]
[1762174759846,0.59775422,107840.0,107830.0,0.37968]
[1762174760447,0.59775422,107840.0,107830.0,0.4724338]
[1762174761252,0.59775422,107840.0,107830.0,0.37968]
[1762174761450,0.95855422,107840.0,107830.0,0.37968]
[1762174762449,0.8449251,107840.0,107830.0,0.4724333]
[1762174762754,0.95855422,107840.0,107830.0,0.4724333]
[1762174763052,0.95855422,107840.0,107830.0,0.37968]
[1762174764251,0.98110143,107840.0,107830.0,0.37968]
[1762174765454,0.98110143,107840.0,107830.0,0.32]
[1762174765646,0.1203333,107830.0,107820.0,0.1500816]
[1762174765852,0.1203333,107830.0,107820.0,0.37732]
[1762174765853,0.70839154,107830.0,107820.0,0.37732]
[1762174767154,0.70839154,107830.0,107820.0,0.05732]
[1762174767453,0.70839154,107830.0,107820.0,0.37732]
[1762174768354,0.70839154,107830.0,107820.0,0.37832]
[1762174768656,0.70839154,107830.0,107820.0,0.05832]
[1762174769336,0.73093408,107830.0,107820.0,0.05832]
[1762174769543,0.73093408,107830.0,107820.0,0.04457]
[1762174769750,0.73883408,107830.0,107820.0,0.04457]
[1762174770348,0.73883408,107830.0,107820.0,0.02249]
[1762174770653,0.73093408,107830.0,107820.0,0.04427]
[1762174771349,0.70839154,107830.0,107820.0,0.04427]
[1762174771661,0.80615383,107830.0,107820.0,0.150792]
[1762174772150,0.78361353,107830.0,107820.0,0.150792]
[1762174773253,0.78361353,107830.0,107820.0,0.05803]
[1762174773455,0.78361353,107830.0,107820.0,0.1507919]
[1762174774053,0.66998441,107830.0,107820.0,0.1507919]
[1762174775842,0.78361353,107830.0,107820.0,0.1507919]
[1762174776353,0.65738994,107830.0,107820.0,0.1507919]
[1762174780061,0.48941465,107830.0,107820.0,0.1507919]
[1762174780257,0.3608,107830.0,107820.0,0.1507919]
[1762174780761,0.58215085,107850.0,107840.0,0.1497747]
[1762174780951,0.58215085,107850.0,107840.0,0.4698147]
[1762174782054,0.58815085,107850.0,107840.0,0.4708147]
[1762174782761,0.58215085,107850.0,107840.0,0.4698147]
[1762174783059,0.58515085,107850.0,107840.0,0.4708147]
[1762174783461,0.58215085,107850.0,107840.0,0.4708147]
[1762174787765,0.4811162,107850.0,107840.0,0.4708147]
[1762174788066,0.58215085,107850.0,107840.0,0.4708147]
[1762174788462,0.48941465,107850.0,107840.0,0.4708147]
[1762174788766,0.58215065,107850.0,107840.0,0.4708147]
[1762174792564,0.58215065,107850.0,107840.0,0.37807]
[1762174793457,0.6831853,107850.0,107840.0,0.001]
[1762174793661,0.58215065,107850.0,107840.0,0.32096]
[1762174793961,0.60472944,107850.0,107840.0,0.32096]
[1762174794157,0.60472944,107850.0,107840.0,0.34245]
[1762174794370,0.60472944,107850.0,107840.0,0.36423]
[1762174794972,0.60472944,107850.0,107840.0,0.31996]
[1762174795167,0.60672944,107850.0,107840.0,0.31996]
[1762174795568,0.60872944,107850.0,107840.0,0.31996]
[1762174795871,0.1203247,107840.0,107830.0,0.37821]
[1762174796071,0.58215935,107840.0,107830.0,0.37821]
[1762174796873,0.58215935,107840.0,107830.0,0.4709633]
[1762174797963,0.58215935,107840.0,107830.0,0.4719633]
[1762174800370,0.691094,107840.0,107830.0,0.001]
[1762174800971,0.71367481,107840.0,107830.0,0.02288]
[1762174801167,0.71367481,107840.0,107830.0,0.001]
[1762174801478,0.71367481,107840.0,107810.0,0.05724]
[1762174801479,0.1203427,107820.0,107810.0,0.05724]
[1762174801673,0.58217735,107820.0,107810.0,0.3772]
[1762174802783,0.58317735,107820.0,107810.0,0.474971]
[1762174803482,0.58317735,107820.0,107810.0,0.476971]
[1762174804578,0.58317735,107820.0,107810.0,0.3842]
[1762174806180,0.94397735,107820.0,107810.0,0.3842]
[1762174806676,0.94397735,107820.0,107810.0,0.476971]
[1762174806975,0.94397705,107820.0,107810.0,0.476971]
[1762174810979,0.94297705,107820.0,107810.0,0.469971]
[1762174811186,0.82263465,107820.0,107810.0,0.470971]
[1762174811379,0.46183465,107820.0,107810.0,0.470971]
[1762174811574,0.58217155,107830.0,107820.0,0.1504724]
[1762174811983,0.12861465,107830.0,107820.0,0.1504724]
[1762174812480,0.58216535,107840.0,107830.0,0.05771]
[1762174812677,0.58216535,107840.0,107830.0,0.4704637]
[1762174813176,0.58216535,107840.0,107830.0,0.37771]
[1762174814185,0.6832,107840.0,107830.0,0.37771]
[1762174814976,0.6832,107840.0,107830.0,0.05771]
[1762174815176,0.6832,107840.0,107830.0,0.4704637]
[1762174815377,0.6852,107840.0,107830.0,0.37871]
[1762174815678,0.58416535,107840.0,107830.0,0.4714637]
[1762174816078,0.6872,107840.0,107830.0,0.37871]
[1762174816580,0.6951,107840.0,107830.0,0.37871]
[1762174817081,0.6951,107840.0,107830.0,0.04549]
[1762174817385,0.6951,107840.0,107830.0,0.001]
[1762174817587,0.58616535,107840.0,107830.0,0.05871]
[1762174818085,0.58616535,107840.0,107830.0,0.1514637]
[1762174818285,0.58616535,107840.0,107830.0,0.05871]
[1762174819185,0.58616535,107840.0,107830.0,0.1514637]
[1762174819385,0.58616535,107840.0,107830.0,0.05871]
[1762174819778,0.6872,107840.0,107830.0,0.05871]
[1762174819979,0.6951,107840.0,107830.0,0.02288]
[1762174820180,0.6951,107840.0,107830.0,0.001]
[1762174821186,0.6951,107840.0,107830.0,0.04549]
[1762174822089,0.71780597,107840.0,107830.0,0.04549]
[1762174822481,0.71780597,107840.0,107830.0,0.02288]
[1762174823680,0.71780597,107840.0,107830.0,0.04549]
[1762174823889,0.70990597,107840.0,107830.0,0.05871]
[1762174824088,0.70590597,107840.0,107830.0,0.05771]
[1762174824291,0.71390597,107840.0,107830.0,0.05871]
[1762174824593,0.61287132,107840.0,107830.0,0.05871]
[1762174825883,0.61287132,107840.0,107830.0,0.1514634]
[1762174826387,0.61287132,107840.0,107830.0,0.05871]
[1762174827093,0.61287132,107840.0,107830.0,0.1514634]
[1762174827494,0.71390597,107840.0,107830.0,0.1514634]
[1762174829296,0.71390597,107840.0,107830.0,0.04549]
[1762174832693,0.71390597,107840.0,107830.0,0.1517134]
[1762174834400,0.72180597,107840.0,107830.0,0.001]
[1762174834604,0.72180597,107840.0,107830.0,0.02357]
[1762174834796,0.72180597,107840.0,107830.0,0.04668]
[1762174835298,0.71390597,107840.0,107830.0,0.1529034]
[1762174835799,0.62115527,107840.0,107830.0,0.1529034]
[1762174835996,0.39150597,107840.0,107830.0,0.1529034]
[1762174836200,0.52012062,107840.0,107830.0,0.1529034]
[1762174836502,0.49741465,107840.0,107830.0,0.1529034]
[1762174836899,0.39638,107840.0,107830.0,0.1529034]
[1762174837201,0.49741465,107840.0,107830.0,0.1529034]
[1762174838202,0.59015945,107840.0,107830.0,0.1529034]
[1762174838401,0.60274253,107840.0,107830.0,0.1529034]
[1762174839692,0.50999773,107840.0,107830.0,0.1529034]
[1762174840202,0.60274263,107840.0,107830.0,0.1529034]
[1762174840410,0.60274263,107840.0,107830.0,0.21954952]
[1762174842305,0.60274263,107840.0,107830.0,0.1529034]
[1762174843007,0.3688,107840.0,107830.0,0.1529034]
[1762174843203,0.50999773,107840.0,107830.0,0.1529034]
[1762174843409,0.60274283,107840.0,107830.0,0.1529034]
[1762174843908,0.50999773,107840.0,107830.0,0.1529034]
[1762174844410,0.48241773,107840.0,107830.0,0.1529034]
[1762174844612,0.48241773,107840.0,107830.0,0.33316725]
[1762174844802,0.48241773,107840.0,107830.0,0.26652113]
[1762174845004,0.48241773,107840.0,107830.0,0.33316725]
[1762174845310,0.3688,107840.0,107830.0,0.21954952]
[1762174845512,0.48241773,107840.0,107830.0,0.21954952]
[1762174846106,0.12161773,107840.0,107830.0,0.69396725]
[1762174846505,0.12161773,107840.0,107830.0,0.58034952]
[1762174846706,0.12161773,107840.0,107830.0,0.69396725]
[1762174847713,0.12161773,107840.0,107830.0,0.58034952]
[1762174849718,0.14919773,107840.0,107830.0,0.58034952]
[1762174850418,0.60274283,107840.0,107830.0,0.21954952]
[1762174850815,0.50999773,107840.0,107830.0,0.53942952]
[1762174851026,0.14919773,107840.0,107830.0,0.53942952]
[1762174851228,0.12161773,107840.0,107830.0,0.90022952]
[1762174851528,0.13540773,107840.0,107830.0,0.90022952]
[1762174852029,0.14919773,107840.0,107830.0,0.90022952]
[1762174852328,0.13540773,107840.0,107830.0,0.90022952]
[1762174853028,0.14919773,107840.0,107830.0,0.90022952]
[1762174853827,0.14619773,107840.0,107830.0,0.90122952]
[1762174854832,0.14119773,107840.0,107830.0,0.89922952]
[1762174855031,0.14319773,107840.0,107830.0,0.90422952]
[1762174855826,0.14319773,107840.0,107830.0,0.90722952]
[1762174856524,0.002,107840.0,107830.0,0.90722952]
[1762174856724,0.14319773,107840.0,107830.0,0.54642952]
[1762174862434,0.14319773,107840.0,107830.0,0.4797834]
[1762174862732,0.11561773,107840.0,107830.0,0.4797834]
[1762174863434,0.11561773,107840.0,107830.0,0.54642952]
[1762174864736,0.11561773,107840.0,107830.0,0.66004725]
[1762174865546,0.12940773,107840.0,107830.0,0.66004725]
[1762174865736,0.12940773,107840.0,107830.0,0.54642952]
[1762174865936,0.23594283,107840.0,107830.0,0.54642952]
[1762174866943,0.1223251,107840.0,107830.0,0.54642952]
[1762174867142,0.23594283,107840.0,107830.0,0.54642952]
[1762174867841,0.59674283,107840.0,107830.0,0.22654952]
[1762174868044,0.59674283,107840.0,107830.0,0.45363612]
[1762174868344,0.59674283,107840.0,107830.0,0.4797437]
[1762174869539,0.50399773,107840.0,107830.0,0.38699]
[1762174869846,0.50399773,107840.0,107830.0,0.54638992]
[1762174870641,0.59674283,107840.0,107830.0,0.54638992]
[1762174873247,0.50399773,107840.0,107830.0,0.54638992]
[1762174874452,0.59674273,107840.0,107830.0,0.54638992]
[1762174876456,0.59674273,107840.0,107830.0,0.4797436]
[1762174876649,0.59674273,107840.0,107830.0,0.38699]
[1762174876855,0.71826046,107840.0,107830.0,0.008]
[1762174877058,0.62795525,107840.0,107830.0,0.008]
[1762174879156,0.74157298,107840.0,107830.0,0.008]
[1762174879355,0.1203423,107820.0,107810.0,0.21648702]
[1762174879558,0.70837776,107820.0,107810.0,0.4696809]
[1762174880148,0.50199773,107820.0,107810.0,0.4696809]
[1762174880353,0.59475993,107820.0,107810.0,0.4696809]
[1762174880855,0.59575993,107820.0,107810.0,0.4756809]
[1762174881653,0.70937766,107820.0,107810.0,0.4756809]
[1762174881853,0.59675993,107820.0,107810.0,0.4856809]
[1762174882758,0.71037766,107820.0,107810.0,0.4856809]
[1762174885158,0.71037766,107820.0,107810.0,0.1658409]
[1762174885349,0.71037766,107820.0,107810.0,0.4856809]
[1762174887358,0.71037766,107820.0,107810.0,0.07307]
[1762174887561,0.71037766,107820.0,107810.0,0.4857206]
[1762174888258,1.07707766,107820.0,107810.0,0.06032]
[1762174888460,1.07707766,107820.0,107810.0,0.35837]
[1762174888659,1.07707766,107820.0,107810.0,0.03853]
[1762174888862,1.07707766,107820.0,107810.0,0.1537006]
[1762174889260,1.07707766,107820.0,107810.0,0.1668506]
[1762174889460,1.07117766,107820.0,107810.0,0.1668506]
[1762174893768,1.07707766,107820.0,107810.0,0.1087706]
[1762174894067,1.07117766,107820.0,107810.0,0.06026]
[1762174894263,1.07117766,107820.0,107810.0,0.07341]
[1762174894663,1.07117766,107820.0,107810.0,0.1661815]
[1762174895771,1.07117766,107820.0,107810.0,0.07341]
[1762174896173,1.07117766,107820.0,107810.0,0.1661815]
[1762174896563,1.07117766,107820.0,107810.0,0.07341]
[1762174898271,1.07707766,107820.0,107810.0,0.06026]
[1762174898471,1.07707766,107820.0,107810.0,0.03786]
[1762174898670,1.07707766,107820.0,107810.0,0.016]
[1762174898868,1.39695766,107820.0,107810.0,0.016]
[1762174899265,1.65210286,107820.0,107810.0,0.016]
[1762174899670,1.42022286,107820.0,107810.0,0.016]
[1762174900069,1.53384059,107820.0,107810.0,0.016]
[1762174900468,1.29407769,107820.0,107810.0,0.007]
[1762174900868,1.29307769,107820.0,107810.0,0.001]
[1762174901070,1.52595769,107820.0,107810.0,0.001]
[1762174902769,0.1203601,107800.0,107790.0,0.18123059]
[1762174902970,0.58225039,107800.0,107790.0,0.18123059]
[1762174904278,0.58325039,107800.0,107790.0,0.08944279]
[1762174904577,0.59241854,107800.0,107790.0,0.18223149]
[1762174904968,0.69350883,107800.0,107790.0,0.08944279]
[1762174905169,0.59241854,107800.0,107790.0,0.18223139]
[1762174908374,0.39854815,107800.0,107790.0,0.18223139]
[1762174908680,0.13883844,107800.0,107790.0,0.18223139]
[1762174909071,0.01016815,107800.0,107790.0,0.18223139]
[1762174909473,0.11125844,107800.0,107790.0,0.18223139]
[1762174909777,0.12504844,107800.0,107790.0,0.18223139]
[1762174909973,0.02395815,107800.0,107790.0,0.18223139]
[1762174910381,0.49132795,107800.0,107790.0,0.18223139]
[1762174910681,0.59241824,107800.0,107790.0,0.18223139]
[1762174911881,0.49963844,107800.0,107790.0,0.18223139]
[1762174912275,0.59241814,107800.0,107790.0,0.18223139]
[1762174912475,0.59241814,107800.0,107790.0,0.08944279]
[1762174912980,0.59241814,107800.0,107790.0,0.18223109]
[1762174913180,0.59241814,107800.0,107790.0,0.08944279]
[1762174913582,0.59241814,107800.0,107790.0,0.18223109]
[1762174915083,0.59241814,107800.0,107790.0,0.08944279]
[1762174915575,0.69350843,107800.0,107790.0,0.09139279]
[1762174915775,0.59241814,107800.0,107790.0,0.09139279]
[1762174916480,0.49132785,107800.0,107790.0,0.09139279]
[1762174916693,0.69350843,107800.0,107790.0,0.09139279]
[1762174917188,0.59241814,107800.0,107790.0,0.07760279]
[1762174917486,0.70140843,107800.0,107790.0,0.07760279]
[1762174917681,0.69350843,107800.0,107790.0,0.09139279]
[1762174919187,0.69350843,107800.0,107790.0,0.18418059]
[1762174919489,0.69350843,107800.0,107790.0,0.09139279]
[1762174920879,0.7167502,107800.0,107790.0,0.09139279]
[1762174921389,0.61565991,107800.0,107790.0,0.18418049]
[1762174921575,0.52288021,107800.0,107790.0,0.18418049]
[1762174921780,0.61565931,107800.0,107790.0,0.18418049]
[1762174921981,0.59241754,107800.0,107790.0,0.18418049]
[1762174922182,0.61566106,107800.0,107790.0,0.18418049]
[1762174922391,0.61566106,107800.0,107790.0,0.09139279]
[1762174922695,0.61566106,107800.0,107790.0,0.18417979]
[1762174922895,0.59241754,107800.0,107790.0,0.18417979]
[1762174923398,0.49132725,107800.0,107790.0,0.18417979]
[1762174923600,0.59241754,107800.0,107790.0,0.18417979]
[1762174925198,0.49963844,107800.0,107790.0,0.18417979]
[1762174925399,0.59241664,107800.0,107790.0,0.18417979]
[1762174927399,0.49963844,107800.0,107790.0,0.18417979]
[1762174927701,0.59241674,107800.0,107790.0,0.18417979]
[1762174929205,0.59241674,107800.0,107790.0,0.09139279]
[1762174929505,0.59241674,107800.0,107790.0,0.18417969]
[1762174934698,0.49963844,107800.0,107790.0,0.18417969]
[1762174935313,0.59241674,107800.0,107790.0,0.18417969]
[1762174936510,0.59241674,107800.0,107790.0,0.18717969]
[1762174937011,0.59341674,107800.0,107790.0,0.18917969]
[1762174937210,0.49963844,107800.0,107790.0,0.50501969]
[1762174937403,0.01016815,107800.0,107790.0,0.93146581]
[1762174938209,0.001,107800.0,107790.0,0.93146581]
[1762174939116,0.02858,107800.0,107790.0,0.93146581]
[1762174939309,0.01479,107800.0,107790.0,0.93146581]
[1762174939510,0.01479,107800.0,107790.0,0.57066581]
[1762174939511,0.13051482,107800.0,107790.0,0.57066581]
[1762174939812,0.23160511,107800.0,107790.0,0.57066581]
[1762174940311,0.59240511,107800.0,107790.0,0.25082581]
[1762174940511,0.59240511,107800.0,107790.0,0.50401969]
[1762174940716,0.59240511,107800.0,107790.0,0.50701969]
[1762174941012,0.59340511,107800.0,107790.0,0.50901969]
[1762174941517,0.47204681,107800.0,107790.0,0.50701969]
[1762174941703,0.01015652,107800.0,107790.0,0.50701969]
[1762174941909,0.01015652,107800.0,107790.0,0.57366581]
[1762174942110,0.01015652,107800.0,107790.0,0.93446581]
[1762174942412,0.58224079,107810.0,107800.0,0.1518282]
[1762174942612,0.58224079,107810.0,107800.0,0.21847432]
[1762174942807,0.48947029,107810.0,107800.0,0.21847432]
[1762174943000,0.58223989,107810.0,107800.0,0.21847432]
[1762174944116,0.58423989,107810.0,107800.0,0.1528282]
[1762174944719,0.58423989,107810.0,107800.0,0.21947432]
[1762174944901,0.49147029,107810.0,107800.0,0.1528282]
[1762174945304,0.37221929,107810.0,107800.0,0.21947432]
[1762174945505,0.37221929,107810.0,107800.0,0.58027432]
[1762174945506,0.01141929,107810.0,107800.0,0.58027432]
[1762174946622,0.02520929,107810.0,107800.0,0.58027432]
[1762174946808,0.01141929,107810.0,107800.0,0.58027432]
[1762174947513,0.002,107810.0,107800.0,0.58027432]
[1762174949706,0.01579,107810.0,107800.0,0.58027432]
[1762174949916,0.02489205,107810.0,107800.0,0.58027432]
[1762174950822,0.11219234,107810.0,107800.0,0.58027432]
[1762174951320,0.10309029,107810.0,107800.0,0.58027432]
[1762174951621,0.002,107810.0,107800.0,0.58027432]
[1762174953324,0.01141079,107810.0,107800.0,0.58027432]
[1762174953523,0.02520079,107810.0,107800.0,0.58027432]
[1762174954424,0.3608,107820.0,107810.0,0.14962]
[1762174954722,0.58222559,107830.0,107820.0,0.05685]
[1762174955115,0.58222559,107830.0,107820.0,0.1496113]
[1762174958228,0.58422559,107830.0,107820.0,0.1506113]
[1762174958424,0.59333768,107830.0,107820.0,0.1506113]
[1762174958629,0.50058238,107830.0,107820.0,0.1506113]
[1762174959125,0.59333518,107830.0,107820.0,0.1506113]
[1762174960122,0.37191209,107830.0,107820.0,0.1506113]
[1762174960321,0.5131195,107830.0,107820.0,0.1506113]
[1762174962824,0.6058721,107830.0,107820.0,0.1506113]
[1762174963535,0.71949951,107830.0,107820.0,0.470331]
[1762174964423,0.71949951,107830.0,107820.0,0.150611]
[1762174964629,0.71949951,107830.0,107820.0,0.470331]
[1762174965221,0.71949951,107830.0,107820.0,0.37757]
[1762174965416,0.71949951,107830.0,107820.0,0.4703313]